[Event "*** Titled Tuesday 3|2 Blitz"]
[Site "Chess.com"]
[Date "2016.07.05"]
[Round "1"]
[White "ruifeng"]
[Black "Fandorine"]
[Result "0-1"]
[WhiteElo "2326"]
[BlackElo "2632"]
[TimeControl "180+2"]
[EndTime "11:08:08 PDT"]
[Termination "Fandorine won by resignation"]

1. e4 {[%clk 0:03:00.5]} 1... c6 {[%clk 0:02:59.3]} 2. d4 {[%clk 0:02:56.8]}
2... d5 {[%clk 0:03:00.2]} 3. exd5 {[%clk 0:02:58.2]} 3... cxd5 {[%clk
0:02:55.3]} 4. c4 {[%clk 0:02:59.5]} 4... Nf6 {[%clk 0:02:56.9]} 5. Nc3 {[%clk
0:02:59.9]} 5... g6 {[%clk 0:02:58.6]} 6. Qb3 {[%clk 0:02:58.1]} 6... Bg7 {[%clk
0:02:59.9]} 7. cxd5 {[%clk 0:02:59.2]} 7... O-O {[%clk 0:03:01.4]} 8. Be2 {[%clk
0:03:00.6]} 8... Na6 {[%clk 0:02:59.9]} 9. Bf3 {[%clk 0:02:59.3]} 9... Nc7
{[%clk 0:02:58.7]} 10. Nge2 {[%clk 0:02:58.5]} 10... Rb8 {[%clk 0:02:52]} 11.
O-O {[%clk 0:02:56]} 11... b5 {[%clk 0:02:50.7]} 12. Bf4 {[%clk 0:02:50.2]}
12... a6 {[%clk 0:02:50.4]} 13. Rac1 {[%clk 0:02:49.8]} 13... Nfe8 {[%clk
0:02:51.5]} 14. Ne4 {[%clk 0:02:46.7]} 14... Nd6 {[%clk 0:02:50.1]} 15. Nxd6
{[%clk 0:02:43.2]} 15... exd6 {[%clk 0:02:52]} 16. Rc6 {[%clk 0:02:43.9]} 16...
Ne8 {[%clk 0:02:53.7]} 17. Rfc1 {[%clk 0:02:19.1]} 17... Bb7 {[%clk 0:02:53.4]}
18. R6c3 {[%clk 0:02:19.4]} 18... Kh8 {[%clk 0:02:44.7]} 19. h3 {[%clk
0:02:18.1]} 19... Qh4 {[%clk 0:02:28]} 20. Bg3 {[%clk 0:02:18.1]} 20... Qg5
{[%clk 0:02:27.8]} 21. Bf4 {[%clk 0:02:18.3]} 21... Qh4 {[%clk 0:02:27.7]} 22.
Bg3 {[%clk 0:02:19.5]} 22... Qg5 {[%clk 0:02:27.7]} 23. a3 {[%clk 0:02:06.3]}
23... h5 {[%clk 0:02:22.8]} 24. Bf4 {[%clk 0:02:06]} 24... Qe7 {[%clk
0:02:20.3]} 25. Re3 {[%clk 0:02:04.8]} 25... Qd8 {[%clk 0:02:18.7]} 26. Qb4
{[%clk 0:02:02.3]} 26... Ba8 {[%clk 0:02:13.1]} 27. Qd2 {[%clk 0:01:54]} 27...
Kg8 {[%clk 0:02:10.8]} 28. Rec3 {[%clk 0:01:53.8]} 28... Qb6 {[%clk 0:01:59.6]}
29. Bg5 {[%clk 0:01:50.2]} 29... Bf6 {[%clk 0:01:55.7]} 30. Bh6 {[%clk
0:01:49.4]} 30... Bg7 {[%clk 0:01:56.8]} 31. Bxh5 {[%clk 0:01:47.6]} 31... Bxd5
{[%clk 0:01:31.5]} 32. Bf3 {[%clk 0:01:45.6]} 32... Bc4 {[%clk 0:01:29.8]} 33.
Bxg7 {[%clk 0:01:42.8]} 33... Nxg7 {[%clk 0:01:31.7]} 34. b3 {[%clk 0:01:43.6]}
34... Bxe2 {[%clk 0:01:31.8]} 35. Bxe2 {[%clk 0:01:44.5]} 35... Nf5 {[%clk
0:01:32.6]} 36. Rd3 {[%clk 0:01:43.6]} 36... Rfe8 {[%clk 0:01:20.8]} 37. Bg4
{[%clk 0:01:44.6]} 37... Ng7 {[%clk 0:01:16]} 38. Qf4 {[%clk 0:01:40]} 38... Rb7
{[%clk 0:01:13.7]} 39. Qf6 {[%clk 0:01:39.7]} 39... Rbe7 {[%clk 0:01:07.8]} 40.
Rdd1 {[%clk 0:01:36.9]} 40... Qd8 {[%clk 0:01:05.1]} 41. Qf4 {[%clk 0:01:36.4]}
41... Re4 {[%clk 0:01:03.2]} 42. Qd2 {[%clk 0:01:37.3]} 42... Qf6 {[%clk
0:01:00.1]} 43. Bf3 {[%clk 0:01:34.2]} 43... R4e7 {[%clk 0:01:01.2]} 44. Bc6
{[%clk 0:01:30.4]} 44... Re2 {[%clk 0:00:57.6]} 45. Qd3 {[%clk 0:01:22.4]} 45...
Qxf2+ {[%clk 0:00:56.6]} 46. Kh1 {[%clk 0:01:18.5]} 46... R8e3 {[%clk
0:00:57.6]} 47. Rf1 {[%clk 0:01:06.2]} 47... Qxf1+ {[%clk 0:00:51.8]} 48. Rxf1
{[%clk 0:01:06.4]} 48... Rxd3 {[%clk 0:00:53.2]} 49. Bd5 {[%clk 0:01:07.7]}
49... Nf5 {[%clk 0:00:53]} 50. g4 {[%clk 0:01:08.5]} 0-1

[Event "*** Titled Tuesday 3|2 Blitz"]
[Site "Chess.com"]
[Date "2016.07.05"]
[Round "1"]
[White "Andrejkin"]
[Black "Smirnov_Pavel"]
[Result "0-1"]
[WhiteElo "2150"]
[BlackElo "2510"]
[TimeControl "180+2"]
[EndTime "11:08:24 PDT"]
[Termination "Smirnov_Pavel won by resignation"]

1. e4 {[%clk 0:03:01.9]} 1... c5 {[%clk 0:03:00.1]} 2. Nf3 {[%clk 0:03:02.2]}
2... Nc6 {[%clk 0:03:00.4]} 3. d4 {[%clk 0:03:03.6]} 3... cxd4 {[%clk
0:03:01.5]} 4. Nxd4 {[%clk 0:03:05.5]} 4... Nf6 {[%clk 0:03:02.5]} 5. Nc3 {[%clk
0:03:05.8]} 5... e5 {[%clk 0:03:03.6]} 6. Ndb5 {[%clk 0:03:06.8]} 6... d6 {[%clk
0:03:04.8]} 7. Nd5 {[%clk 0:03:02.4]} 7... Nxd5 {[%clk 0:03:04.6]} 8. exd5
{[%clk 0:03:04.3]} 8... Nb8 {[%clk 0:03:05.5]} 9. c4 {[%clk 0:03:06.2]} 9... a6
{[%clk 0:03:06.1]} 10. Qa4 {[%clk 0:02:45.9]} 10... Nd7 {[%clk 0:03:06.1]} 11.
Be3 {[%clk 0:02:40.8]} 11... b6 {[%clk 0:03:00.5]} 12. Nc3 {[%clk 0:02:33.3]}
12... Be7 {[%clk 0:03:00.5]} 13. Qb3 {[%clk 0:02:34.3]} 13... O-O {[%clk
0:03:00.8]} 14. f3 {[%clk 0:02:34.5]} 14... f5 {[%clk 0:03:01.5]} 15. Be2 {[%clk
0:02:34.5]} 15... Nc5 {[%clk 0:02:57.8]} 16. Bxc5 {[%clk 0:02:35.2]} 16... bxc5
{[%clk 0:02:58.3]} 17. a4 {[%clk 0:02:34.2]} 17... Bg5 {[%clk 0:02:56.5]} 18. g3
{[%clk 0:02:32.9]} 18... Bd7 {[%clk 0:02:57.5]} 19. O-O {[%clk 0:02:30.6]} 19...
Rb8 {[%clk 0:02:58.5]} 20. Qc2 {[%clk 0:02:29.4]} 20... Qb6 {[%clk 0:02:59.2]}
21. Rab1 {[%clk 0:02:26.5]} 21... Be3+ {[%clk 0:02:59.9]} 22. Kh1 {[%clk
0:02:27.5]} 22... Bd4 {[%clk 0:03:01]} 23. b3 {[%clk 0:02:26.3]} 23... Qa5
{[%clk 0:03:02]} 24. Na2 {[%clk 0:02:24.3]} 24... Rb7 {[%clk 0:03:02]} 25. Bd3
{[%clk 0:02:24.6]} 25... g6 {[%clk 0:03:01.2]} 26. Rfd1 {[%clk 0:02:23.3]} 26...
Rfb8 {[%clk 0:03:01.1]} 27. Kg2 {[%clk 0:02:20.2]} 27... Bxa4 {[%clk 0:02:46]}
28. bxa4 {[%clk 0:02:18.2]} 28... Rb2 {[%clk 0:02:46.5]} 29. Kh1 {[%clk
0:02:10.9]} 29... Kg7 {[%clk 0:02:38.6]} 30. Rxb2 {[%clk 0:02:07.6]} 30... Rxb2
{[%clk 0:02:38.1]} 31. Qc1 {[%clk 0:02:08.7]} 31... Qxa4 {[%clk 0:01:22.6]} 32.
Rd2 {[%clk 0:01:13.9]} 32... Qxa2 {[%clk 0:01:20.8]} 33. Rxb2 {[%clk 0:01:09.8]}
33... Qxb2 {[%clk 0:01:18.4]} 34. Qxb2 {[%clk 0:01:07.1]} 34... Bxb2 {[%clk
0:01:19.3]} 35. Kg2 {[%clk 0:01:09]} 35... Kf6 {[%clk 0:01:20.2]} 36. Kf2 {[%clk
0:01:09.7]} 36... Ke7 {[%clk 0:01:21.3]} 37. Ke2 {[%clk 0:01:10.8]} 37... Kd7
{[%clk 0:01:22.3]} 38. Kd2 {[%clk 0:01:12.2]} 38... Kc7 {[%clk 0:01:23.4]} 39.
Kc2 {[%clk 0:01:13.6]} 39... Bd4 {[%clk 0:01:24.3]} 40. Kb3 {[%clk 0:01:14.9]}
40... h5 {[%clk 0:01:19.6]} 41. Kc2 {[%clk 0:01:08.1]} 41... a5 {[%clk
0:01:18.7]} 42. Kb3 {[%clk 0:01:08.6]} 42... Bg1 {[%clk 0:01:13.8]} 43. h3
{[%clk 0:01:07.1]} 43... Bf2 {[%clk 0:01:11.8]} 44. g4 {[%clk 0:01:05.9]} 44...
e4 {[%clk 0:01:12.1]} 45. fxe4 {[%clk 0:01:04.7]} 45... fxg4 {[%clk 0:01:12.6]}
46. hxg4 {[%clk 0:01:02.5]} 46... hxg4 {[%clk 0:01:13.6]} 47. Be2 {[%clk
0:01:03.7]} 47... g3 {[%clk 0:01:14.5]} 48. Bf3 {[%clk 0:01:04.5]} 48... Kd7
{[%clk 0:01:15.6]} 49. Ka4 {[%clk 0:01:01.5]} 49... Be1 {[%clk 0:01:15.6]} 50.
Bg4+ {[%clk 0:00:56.6]} 50... Ke7 {[%clk 0:01:16.1]} 51. Kb5 {[%clk 0:00:45.1]}
51... g2 {[%clk 0:01:15.7]} 0-1

[Event "*** Titled Tuesday 3|2 Blitz"]
[Site "Chess.com"]
[Date "2016.07.05"]
[Round "1"]
[White "TheLancer"]
[Black "Aragon"]
[Result "1-0"]
[WhiteElo "2467"]
[BlackElo "2104"]
[TimeControl "180+2"]
[EndTime "11:08:27 PDT"]
[Termination "TheLancer won by checkmate"]

1. e4 {[%clk 0:03:01.9]} 1... Nc6 {[%clk 0:02:58.7]} 2. Nf3 {[%clk 0:03:00.3]}
2... f5 {[%clk 0:02:58.4]} 3. e5 {[%clk 0:02:44.9]} 3... d5 {[%clk 0:02:53.1]}
4. d4 {[%clk 0:02:36.3]} 4... Nh6 {[%clk 0:02:39.5]} 5. Bxh6 {[%clk 0:02:25.4]}
5... gxh6 {[%clk 0:02:41.4]} 6. Bb5 {[%clk 0:02:15.1]} 6... e6 {[%clk
0:02:32.4]} 7. Nc3 {[%clk 0:02:00.7]} 7... a6 {[%clk 0:02:25.6]} 8. Be2 {[%clk
0:01:38.6]} 8... Ne7 {[%clk 0:02:11.2]} 9. h4 {[%clk 0:01:23]} 9... Bd7 {[%clk
0:01:57.7]} 10. Nd2 {[%clk 0:01:15.9]} 10... Ng6 {[%clk 0:01:54.4]} 11. Bh5
{[%clk 0:01:16.8]} 11... c5 {[%clk 0:01:46.3]} 12. Ne2 {[%clk 0:01:00.4]} 12...
Rc8 {[%clk 0:01:41]} 13. c3 {[%clk 0:00:57.3]} 13... Kf7 {[%clk 0:01:12.9]} 14.
a3 {[%clk 0:00:44.7]} 14... cxd4 {[%clk 0:01:05.8]} 15. cxd4 {[%clk 0:00:44.2]}
15... Qb6 {[%clk 0:00:52.8]} 16. O-O {[%clk 0:00:31.4]} 16... Kg7 {[%clk
0:00:48.1]} 17. Bxg6 {[%clk 0:00:23.3]} 17... hxg6 {[%clk 0:00:46.7]} 18. Nf3
{[%clk 0:00:21.2]} 18... Bb5 {[%clk 0:00:36.5]} 19. Qb3 {[%clk 0:00:17.6]} 19...
Qd8 {[%clk 0:00:21.6]} 20. Nf4 {[%clk 0:00:17.8]} 20... Kf7 {[%clk 0:00:13.8]}
21. Rfb1 {[%clk 0:00:15.4]} 21... Be7 {[%clk 0:00:14.6]} 22. h5 {[%clk
0:00:13.7]} 22... g5 {[%clk 0:00:14.8]} 23. Ng6 {[%clk 0:00:15]} 23... Rg8
{[%clk 0:00:16]} 24. Rc1 {[%clk 0:00:15.5]} 24... Qd7 {[%clk 0:00:16.8]} 25. a4
{[%clk 0:00:16]} 25... Bc4 {[%clk 0:00:16.7]} 26. Qe3 {[%clk 0:00:14]} 26... g4
{[%clk 0:00:17.8]} 27. Qxh6 {[%clk 0:00:12.4]} 27... gxf3 {[%clk 0:00:18.7]} 28.
gxf3 {[%clk 0:00:13.7]} 28... Rg7 {[%clk 0:00:17.3]} 29. Kh2 {[%clk 0:00:14.6]}
29... Rcg8 {[%clk 0:00:16.4]} 30. Rg1 {[%clk 0:00:16.1]} 30... Qd8 {[%clk
0:00:15.4]} 31. Nh8+ {[%clk 0:00:16.6]} 31... Kf8 {[%clk 0:00:14]} 32. Qxe6
{[%clk 0:00:16]} 32... Rxg1 {[%clk 0:00:13.3]} 33. Rxg1 {[%clk 0:00:17.9]} 33...
Rg7 {[%clk 0:00:09.1]} 34. Ng6+ {[%clk 0:00:16.9]} 34... Ke8 {[%clk 0:00:10.2]}
35. h6 {[%clk 0:00:18.3]} 35... Rxg6 {[%clk 0:00:10.1]} 36. Rxg6 {[%clk
0:00:19.7]} 36... Qd7 {[%clk 0:00:09.4]} 37. Rg8# {[%clk 0:00:21]} 1-0

[Event "*** Titled Tuesday 3|2 Blitz"]
[Site "Chess.com"]
[Date "2016.07.05"]
[Round "1"]
[White "Alexander_Donchenko"]
[Black "pedromartinez91"]
[Result "1-0"]
[WhiteElo "2591"]
[BlackElo "2296"]
[TimeControl "180+2"]
[EndTime "11:08:33 PDT"]
[Termination "Alexander_Donchenko won by checkmate"]

1. d4 {[%clk 0:03:01.9]} 1... d5 {[%clk 0:02:56.9]} 2. c4 {[%clk 0:03:03]} 2...
e6 {[%clk 0:02:57.5]} 3. Nf3 {[%clk 0:03:04.1]} 3... Nf6 {[%clk 0:02:57.5]} 4.
g3 {[%clk 0:03:05.4]} 4... Be7 {[%clk 0:02:58.1]} 5. Bg2 {[%clk 0:03:06.7]} 5...
O-O {[%clk 0:02:59]} 6. O-O {[%clk 0:03:08.4]} 6... dxc4 {[%clk 0:03:00]} 7. Qc2
{[%clk 0:03:10]} 7... a6 {[%clk 0:02:59.4]} 8. a4 {[%clk 0:03:11.6]} 8... Bd7
{[%clk 0:02:58.5]} 9. Qxc4 {[%clk 0:03:13]} 9... Bc6 {[%clk 0:03:00]} 10. Bf4
{[%clk 0:03:14.5]} 10... a5 {[%clk 0:02:56.7]} 11. Nc3 {[%clk 0:03:15.7]} 11...
Bd6 {[%clk 0:02:53.5]} 12. Bg5 {[%clk 0:03:09.1]} 12... h6 {[%clk 0:02:33.6]}
13. Bxf6 {[%clk 0:03:09.7]} 13... Qxf6 {[%clk 0:02:34.9]} 14. e4 {[%clk
0:03:10.3]} 14... Bb4 {[%clk 0:02:36.2]} 15. Ne5 {[%clk 0:03:06.1]} 15... Rc8
{[%clk 0:02:23.1]} 16. Nxc6 {[%clk 0:02:57.2]} 16... Nxc6 {[%clk 0:02:22.7]} 17.
Rfd1 {[%clk 0:02:47.9]} 17... Qe7 {[%clk 0:02:12]} 18. Rac1 {[%clk 0:02:45.5]}
18... Bxc3 {[%clk 0:02:05.8]} 19. bxc3 {[%clk 0:02:43]} 19... Rd8 {[%clk
0:01:59.3]} 20. Rb1 {[%clk 0:02:42.1]} 20... Rab8 {[%clk 0:01:54]} 21. e5 {[%clk
0:02:41.9]} 21... Qd7 {[%clk 0:01:52.5]} 22. Rxb7 {[%clk 0:02:28.4]} 22... Nxe5
{[%clk 0:01:33.1]} 23. Qxc7 {[%clk 0:02:28.9]} 23... Rxb7 {[%clk 0:01:08.2]} 24.
Qxb7 {[%clk 0:02:29.9]} 24... Qxa4 {[%clk 0:01:06.3]} 25. Rb1 {[%clk 0:02:19.3]}
25... Ng6 {[%clk 0:00:50.8]} 26. Be4 {[%clk 0:02:15.3]} 26... Qa3 {[%clk
0:00:47.4]} 27. Bxg6 {[%clk 0:02:10.4]} 27... fxg6 {[%clk 0:00:46.8]} 28. Qc7
{[%clk 0:02:10.5]} 28... Qd6 {[%clk 0:00:44.1]} 29. Qxa5 {[%clk 0:02:08.6]}
29... Rc8 {[%clk 0:00:42.3]} 30. Rb7 {[%clk 0:01:57.8]} 30... e5 {[%clk
0:00:17.9]} 31. Qa7 {[%clk 0:01:40.4]} 31... Qf6 {[%clk 0:00:18.4]} 32. Rb8
{[%clk 0:01:41.7]} 32... Rf8 {[%clk 0:00:13.2]} 33. Qa2+ {[%clk 0:01:33.9]}
33... Kh7 {[%clk 0:00:13.8]} 34. Rxf8 {[%clk 0:01:34.4]} 34... Qxf8 {[%clk
0:00:15.2]} 35. dxe5 {[%clk 0:01:35.8]} 35... Qc5 {[%clk 0:00:16.9]} 36. c4
{[%clk 0:01:07.4]} 36... Qxe5 {[%clk 0:00:17.2]} 37. Qd2 {[%clk 0:01:09]} 37...
h5 {[%clk 0:00:13.5]} 38. h4 {[%clk 0:01:06.3]} 38... Qe4 {[%clk 0:00:13.8]} 39.
Qd5 {[%clk 0:01:06.6]} 39... Qe1+ {[%clk 0:00:14.7]} 40. Kg2 {[%clk 0:01:07.9]}
40... g5 {[%clk 0:00:15.6]} 41. hxg5 {[%clk 0:01:01]} 41... h4 {[%clk
0:00:16.5]} 42. gxh4 {[%clk 0:01:00.6]} 42... Kg6 {[%clk 0:00:17.7]} 43. c5
{[%clk 0:00:56.3]} 43... Kh5 {[%clk 0:00:18.9]} 44. c6 {[%clk 0:00:56]} 44...
Kxh4 {[%clk 0:00:20]} 45. c7 {[%clk 0:00:56.9]} 45... g6 {[%clk 0:00:20.8]} 46.
c8=Q {[%clk 0:00:52.3]} 46... Qg1+ {[%clk 0:00:21]} 47. Kxg1 {[%clk 0:00:52.9]}
47... Kh5 {[%clk 0:00:20.4]} 48. Qh3# {[%clk 0:00:53.3]} 1-0

[Event "*** Titled Tuesday 3|2 Blitz"]
[Site "Chess.com"]
[Date "2016.07.05"]
[Round "1"]
[White "Alliswell998"]
[Black "Ginger_GM"]
[Result "0-1"]
[WhiteElo "2173"]
[BlackElo "2503"]
[TimeControl "180+2"]
[EndTime "11:08:33 PDT"]
[Termination "Ginger_GM won by resignation"]

1. e4 {[%clk 0:02:59.1]} 1... e6 {[%clk 0:02:59.5]} 2. d4 {[%clk 0:02:59.6]}
2... d5 {[%clk 0:02:59.9]} 3. Nc3 {[%clk 0:02:57.9]} 3... Bb4 {[%clk 0:02:59.7]}
4. exd5 {[%clk 0:02:55.7]} 4... exd5 {[%clk 0:03:00.3]} 5. Bd3 {[%clk
0:02:56.1]} 5... Nc6 {[%clk 0:03:00.2]} 6. a3 {[%clk 0:02:56.4]} 6... Bxc3+
{[%clk 0:02:58.8]} 7. bxc3 {[%clk 0:02:58.3]} 7... Nge7 {[%clk 0:02:55.4]} 8.
Qh5 {[%clk 0:02:56.6]} 8... Be6 {[%clk 0:02:54.4]} 9. Ne2 {[%clk 0:02:53.8]}
9... Qd7 {[%clk 0:02:54.4]} 10. h3 {[%clk 0:02:52]} 10... O-O-O {[%clk 0:02:50]}
11. Rb1 {[%clk 0:02:45.1]} 11... g6 {[%clk 0:02:48.8]} 12. Qf3 {[%clk
0:02:40.5]} 12... Bf5 {[%clk 0:02:46.3]} 13. Nf4 {[%clk 0:02:35.7]} 13... h5
{[%clk 0:02:41]} 14. Be3 {[%clk 0:02:20.6]} 14... Bxd3 {[%clk 0:02:32.6]} 15.
Nxd3 {[%clk 0:02:21]} 15... b6 {[%clk 0:02:24.4]} 16. O-O {[%clk 0:02:16.6]}
16... Nf5 {[%clk 0:02:23.9]} 17. a4 {[%clk 0:02:09.2]} 17... Na5 {[%clk
0:02:07.6]} 18. Ne5 {[%clk 0:02:03.9]} 18... Qe6 {[%clk 0:02:05.1]} 19. Rfe1
{[%clk 0:02:00.8]} 19... Rhf8 {[%clk 0:01:37.5]} 20. Bf4 {[%clk 0:01:43.3]}
20... Rde8 {[%clk 0:01:37.4]} 21. Qd3 {[%clk 0:01:25.5]} 21... Kb7 {[%clk
0:01:37.8]} 22. Qb5 {[%clk 0:01:23.3]} 22... Nc6 {[%clk 0:01:21]} 23. a5 {[%clk
0:01:10.5]} 23... a6 {[%clk 0:01:21.7]} 24. Qa4 {[%clk 0:00:55]} 24... Nxe5
{[%clk 0:01:18.7]} 25. Rxe5 {[%clk 0:00:54.1]} 25... Qc6 {[%clk 0:01:19.7]} 26.
Qb3 {[%clk 0:00:50.6]} 26... Rxe5 {[%clk 0:01:18.1]} 27. Bxe5 {[%clk 0:00:51.6]}
27... b5 {[%clk 0:01:19.3]} 28. Qb4 {[%clk 0:00:50.6]} 28... Re8 {[%clk
0:01:19.8]} 29. Rd1 {[%clk 0:00:36.8]} 29... f6 {[%clk 0:01:20.8]} 30. Bf4
{[%clk 0:00:37]} 30... g5 {[%clk 0:01:21.9]} 31. Bc1 {[%clk 0:00:36.8]} 31... g4
{[%clk 0:01:23]} 32. hxg4 {[%clk 0:00:36.2]} 32... hxg4 {[%clk 0:01:24.9]} 33.
Bf4 {[%clk 0:00:34.8]} 33... Re4 {[%clk 0:01:24.3]} 34. Bg3 {[%clk 0:00:30.2]}
34... Nxg3 {[%clk 0:01:21.7]} 35. fxg3 {[%clk 0:00:32.1]} 35... Qe6 {[%clk
0:01:20.2]} 36. Qc5 {[%clk 0:00:26]} 36... Re2 {[%clk 0:01:19.6]} 37. Kh2 {[%clk
0:00:24.9]} 37... f5 {[%clk 0:01:19.9]} 38. c4 {[%clk 0:00:22.3]} 38... dxc4
{[%clk 0:01:19.2]} 39. d5 {[%clk 0:00:23.1]} 39... Qd6 {[%clk 0:01:16.2]} 40.
Qd4 {[%clk 0:00:19.8]} 40... Rxc2 {[%clk 0:01:10.8]} 41. Re1 {[%clk 0:00:17.6]}
41... f4 {[%clk 0:01:03.9]} 42. gxf4 {[%clk 0:00:14.6]} 42... g3+ {[%clk
0:01:00.7]} 43. Kh3 {[%clk 0:00:07.2]} 43... Qh6+ {[%clk 0:01:00.9]} 44. Kg4
{[%clk 0:00:08.6]} 44... Qg6+ {[%clk 0:01:02]} 45. Kh4 {[%clk 0:00:09.5]} 45...
Rxg2 {[%clk 0:01:01]} 46. Rh1 {[%clk 0:00:06.6]} 46... Rh2+ {[%clk 0:00:59.9]}
47. Rxh2 {[%clk 0:00:06.9]} 47... gxh2 {[%clk 0:01:01.8]} 0-1

[Event "*** Titled Tuesday 3|2 Blitz"]
[Site "Chess.com"]
[Date "2016.07.05"]
[Round "1"]
[White "Byniolus"]
[Black "YuriyKrykun"]
[Result "1-0"]
[WhiteElo "2598"]
[BlackElo "2309"]
[TimeControl "180+2"]
[EndTime "11:08:43 PDT"]
[Termination "Byniolus won by resignation"]

1. d4 {[%clk 0:03:01.9]} 1... Nf6 {[%clk 0:02:57.4]} 2. Bf4 {[%clk 0:03:03]}
2... g6 {[%clk 0:02:56.9]} 3. e3 {[%clk 0:03:04.2]} 3... Bg7 {[%clk 0:02:57.2]}
4. Nf3 {[%clk 0:03:05.7]} 4... O-O {[%clk 0:02:58.7]} 5. Be2 {[%clk 0:03:07.3]}
5... d6 {[%clk 0:03:00.2]} 6. h3 {[%clk 0:03:08.8]} 6... c5 {[%clk 0:03:01]} 7.
c3 {[%clk 0:03:10]} 7... Be6 {[%clk 0:03:01.1]} 8. dxc5 {[%clk 0:03:11]} 8...
dxc5 {[%clk 0:03:01.9]} 9. Qxd8 {[%clk 0:03:12.9]} 9... Rxd8 {[%clk 0:03:03.3]}
10. Nbd2 {[%clk 0:03:14.7]} 10... Nc6 {[%clk 0:03:04.1]} 11. a4 {[%clk
0:03:09.4]} 11... b6 {[%clk 0:03:00.8]} 12. Ba6 {[%clk 0:03:07.8]} 12... Bc8
{[%clk 0:02:55.4]} 13. Bxc8 {[%clk 0:03:04.9]} 13... Raxc8 {[%clk 0:02:55.2]}
14. Nc4 {[%clk 0:03:02.6]} 14... Nd5 {[%clk 0:02:52.6]} 15. Bg3 {[%clk
0:03:03.8]} 15... Rd7 {[%clk 0:02:38.9]} 16. Ke2 {[%clk 0:03:02]} 16... Rcd8
{[%clk 0:02:32.9]} 17. Rhc1 {[%clk 0:03:00.4]} 17... h6 {[%clk 0:02:23]} 18. Ra3
{[%clk 0:02:56.6]} 18... f5 {[%clk 0:02:16.7]} 19. Rb3 {[%clk 0:02:53.4]} 19...
Rb7 {[%clk 0:01:56.4]} 20. a5 {[%clk 0:02:45.1]} 20... b5 {[%clk 0:01:46.4]} 21.
a6 {[%clk 0:02:44.7]} 21... Rbb8 {[%clk 0:01:46]} 22. Nce5 {[%clk 0:02:09.1]}
22... Nxe5 {[%clk 0:01:43.8]} 23. Nxe5 {[%clk 0:02:09.9]} 23... Rb6 {[%clk
0:01:43.4]} 24. Rd1 {[%clk 0:01:58.3]} 24... c4 {[%clk 0:01:36.5]} 25. Nxc4
{[%clk 0:01:45.4]} 25... bxc4 {[%clk 0:01:36]} 26. Rxb6 {[%clk 0:01:47.3]} 26...
axb6 {[%clk 0:01:36.7]} 27. a7 {[%clk 0:01:47.5]} 27... Ra8 {[%clk 0:01:37.5]}
28. Rxd5 {[%clk 0:01:48.2]} 28... Rxa7 {[%clk 0:01:38.6]} 29. Rb5 {[%clk
0:01:47.9]} 29... Rb7 {[%clk 0:01:37.6]} 30. e4 {[%clk 0:01:40.7]} 30... e6
{[%clk 0:01:34]} 31. f3 {[%clk 0:01:38.6]} 31... Kf7 {[%clk 0:01:35.1]} 32. Bf2
{[%clk 0:01:37.8]} 32... Ke7 {[%clk 0:01:32.5]} 33. Rxb6 {[%clk 0:01:38.5]}
33... Rxb6 {[%clk 0:01:33.2]} 34. Bxb6 {[%clk 0:01:40.4]} 34... Kd6 {[%clk
0:01:34.8]} 35. Kd2 {[%clk 0:01:37.4]} 35... Kc6 {[%clk 0:01:35.5]} 36. Bd4
{[%clk 0:01:36.8]} 36... Bf8 {[%clk 0:01:34.1]} 37. Kc2 {[%clk 0:01:34.8]} 37...
Kb5 {[%clk 0:01:35.7]} 38. b3 {[%clk 0:01:35.1]} 38... h5 {[%clk 0:01:37.1]} 39.
g4 {[%clk 0:01:35]} 39... hxg4 {[%clk 0:01:34.1]} 40. fxg4 {[%clk 0:01:31.3]}
40... fxg4 {[%clk 0:01:35.3]} 41. hxg4 {[%clk 0:01:33.2]} 41... Be7 {[%clk
0:01:35.7]} 42. b4 {[%clk 0:01:32.8]} 42... g5 {[%clk 0:01:28.6]} 43. Bg7 {[%clk
0:01:30]} 43... Bd6 {[%clk 0:01:26.3]} 44. e5 {[%clk 0:01:21.3]} 44... Bc7
{[%clk 0:01:21.9]} 45. Bf6 {[%clk 0:01:22]} 45... Bb8 {[%clk 0:01:22.8]} 46. Kd2
{[%clk 0:01:22.7]} 46... Kc6 {[%clk 0:01:22.5]} 47. Ke3 {[%clk 0:01:20]} 47...
Kd5 {[%clk 0:01:23.7]} 48. Kf3 {[%clk 0:01:09.7]} 48... Bc7 {[%clk 0:01:22.8]}
49. Bxg5 {[%clk 0:01:07]} 49... Bxe5 {[%clk 0:01:24.2]} 50. Bd2 {[%clk
0:01:08.6]} 50... Bf6 {[%clk 0:01:23.5]} 51. g5 {[%clk 0:01:09.7]} 51... Bg7
{[%clk 0:01:25]} 52. Kf4 {[%clk 0:01:07]} 52... Be5+ {[%clk 0:01:26.4]} 53. Kg4
{[%clk 0:01:08]} 53... Bg7 {[%clk 0:01:28]} 54. Kh5 {[%clk 0:01:09.2]} 54... Ke4
{[%clk 0:01:28.5]} 55. Kg6 {[%clk 0:01:10.8]} 55... Be5 {[%clk 0:01:25.7]} 56.
Kf7 {[%clk 0:01:08.4]} 56... Kd3 {[%clk 0:01:27.3]} 57. Kxe6 {[%clk 0:01:08.8]}
57... Bh8 {[%clk 0:01:13.5]} 58. Be1 {[%clk 0:01:06.5]} 58... Ke2 {[%clk
0:01:14.1]} 59. b5 {[%clk 0:01:02]} 59... Kxe1 {[%clk 0:01:14.6]} 60. b6 {[%clk
0:01:03]} 60... Bxc3 {[%clk 0:01:06.9]} 61. b7 {[%clk 0:01:04.2]} 1-0